bitfinex/quotes_ETHUSD_20240917
["timestamp","ask_amount","ask_price","bid_price","bid_amount"]
[1726615585505,0.0392141,2339.8,2339.7,13.8145]
[1726615590578,0.0392141,2339.8,2339.7,9.54045]
[1726615591314,0.0392141,2339.8,2339.7,11.0600666]
[1726615591670,0.0392141,2339.8,2339.7,15.3341166]
[1726615593682,0.0392141,2339.8,2339.7,11.0600666]
[1726615599593,0.0392141,2339.8,2339.7,3.0]
[1726615599902,0.0392141,2339.8,2339.7,7.27405]
[1726615600250,0.0392141,2339.8,2339.7,3.0]
[1726615600948,0.0392141,2339.8,2339.7,7.27405]
[1726615603464,0.0392141,2339.8,2339.7,3.0]
[1726615606053,0.0392141,2339.8,2339.7,7.27405]
[1726615608558,0.0392141,2339.8,2339.7,15.08531]
[1726615611664,0.0392141,2339.8,2339.7,8.42886]
[1726615611832,0.0392141,2339.8,2339.7,7.27405]
[1726615621545,0.0392141,2339.8,2339.7,14.0399]
[1726615623178,0.0392141,2339.8,2339.7,3.0]
[1726615623379,0.0392141,2339.8,2339.5,9.55117]
[1726615624245,0.0392141,2339.8,2339.6,4.27413]
[1726615624446,0.0392141,2339.8,2339.7,3.0]
[1726615625249,0.0392141,2339.8,2339.7,7.27405]
[1726615625584,6.7040741,2340.1,2339.7,7.27405]
[1726615627383,8.76700678,2340.1,2339.7,7.27405]
[1726615628186,8.76700678,2340.1,2339.6,7.27422]
[1726615628507,4.22351,2340.0,2339.6,7.27421]
[1726615629659,6.7040441,2340.1,2339.6,7.27421]
[1726615630659,6.6540441,2340.1,2339.6,7.27421]
[1726615632173,2.3807141,2340.1,2339.6,7.27421]
[1726615632380,4.27352,2340.0,2339.6,3.0]
[1726615634078,4.27352,2340.0,2339.6,7.27415]
[1726615636413,4.27352,2340.0,2339.6,3.0]
[1726615637915,4.27352,2340.0,2339.6,7.27422]
[1726615638306,4.27352,2340.0,2339.6,3.0]
[1726615639884,6.6540341,2340.1,2339.6,7.27407]
[1726615640085,6.6540341,2340.1,2339.7,4.27402]
[1726615641127,6.6540341,2340.1,2339.6,10.3264574]
[1726615642784,2.23295325,2340.2,2339.9,2.4465]
[1726615642988,13.98496,2340.3,2339.9,2.4465]
[1726615643188,6.56496,2340.3,2339.9,2.4465]
[1726615643503,6.50614428,2340.4,2339.9,7.35991856]
[1726615643711,10.77902428,2340.4,2339.9,7.35991856]
[1726615643880,6.50609428,2340.4,2339.9,7.35991856]
[1726615644078,4.27296,2340.3,2339.9,7.35991856]
[1726615644317,4.27296,2340.3,2339.9,5.136633]
[1726615645424,6.50617428,2340.3,2339.9,5.136633]
[1726615645585,6.50608428,2340.4,2339.9,9.410233]
[1726615645922,6.50608428,2340.4,2339.9,5.136583]
[1726615646425,4.27287,2340.4,2339.9,5.136583]
[1726615646723,4.27287,2340.4,2339.9,9.410183]
[1726615647328,5.58934484,2340.4,2339.9,5.136583]
[1726615647824,7.82255912,2340.4,2339.9,5.136583]
[1726615648121,5.58934484,2340.4,2339.9,9.410183]
[1726615648424,7.82146297,2340.4,2339.9,5.136583]
[1726615649031,12.09432297,2340.4,2339.9,5.136583]
[1726615649524,12.09435297,2340.4,2339.9,5.136573]
[1726615650222,1.44804671,2340.3,2339.9,0.862983]
[1726615650422,4.27321,2340.2,2339.9,0.862983]
[1726615655909,4.27321,2340.2,2339.9,0.862983]
[1726615656294,8.54644,2340.2,2339.9,0.862983]
[1726615656496,4.27344,2340.1,2339.7,5.4772]
[1726615656839,4.27344,2340.1,2339.6,3.0]
[1726615656840,4.27355,2340.0,2339.6,3.0]
[1726615657007,2.3862,2339.9,2339.6,3.0]
[1726615659241,4.27355,2340.0,2339.6,3.0]
[1726615660851,4.27355,2340.0,2339.6,7.27422]
[1726615663832,5.59390947,2340.0,2339.6,3.0]
[1726615664052,4.27399,2339.8,2339.4,3.0]
[1726615664336,6.55679,2339.8,2339.4,3.0]
[1726615664538,10.83077,2339.8,2339.4,3.0]
[1726615664858,10.83077,2339.8,2339.2,4.27495]
[1726615664859,5.357167,2339.7,2339.2,4.27495]
[1726615665137,5.357167,2339.7,2339.3,6.58394]
[1726615665138,1.083077,2339.7,2339.3,6.58394]
[1726615665437,4.27395,2339.8,2339.4,2.3092]
[1726615667411,8.54795,2339.8,2339.4,2.3092]
[1726615669632,4.27405,2339.7,2339.4,2.3092]
[1726615671162,4.27395,2339.8,2339.4,6.58371]
[1726615680074,4.2737,2339.9,2339.5,2.4823]
[1726615680405,5.59393947,2340.0,2339.5,2.4823]
[1726615680406,9.86753947,2340.0,2339.6,2.4823]
[1726615680615,4.27358,2340.0,2339.6,2.4823]
[1726615680908,4.27355,2340.0,2339.6,6.75642]
[1726615681117,4.27355,2340.0,2339.6,8.27435036]
[1726615681314,4.27355,2340.0,2339.6,2.4823]
[1726615681909,2.4602,2340.1,2339.6,6.75653]
[1726615682118,4.27328,2340.2,2339.6,6.75653]
[1726615682119,4.27328,2340.2,2339.7,4.27402]
[1726615682283,4.27328,2340.2,2339.8,2.4555]
[1726615682721,8.54656,2340.2,2339.8,2.4555]
[1726615682890,4.27336,2340.1,2339.8,2.4555]
[1726615692038,4.27352,2340.0,2339.8,2.4555]
[1726615692192,8.54681,2340.1,2339.7,3.0]
[1726615692397,9.35338067,2340.1,2339.7,3.0]
[1726615693501,5.07993067,2340.1,2339.7,3.0]
[1726615694204,4.27336,2340.1,2339.7,3.0]
[1726615695237,8.54676,2340.1,2339.7,3.0]
[1726615695899,8.5468,2340.1,2339.7,3.0]
[1726615696105,4.27336,2340.1,2339.7,3.0]
[1726615696300,8.54681,2340.1,2339.7,3.0]
[1726615696605,4.27336,2340.1,2339.7,3.0]
[1726615697741,4.27336,2340.1,2339.8,2.3051]
[1726615698709,8.54677,2340.1,2339.8,2.3051]
[1726615699041,4.27336,2340.1,2339.8,2.3051]
[1726615699918,8.54677,2340.1,2339.8,2.3051]
[1726615700117,4.27336,2340.1,2339.8,2.3051]
[1726615704140,2.3761,2339.9,2339.2,2.4063]
[1726615704327,2.2727,2339.7,2339.2,6.68126]
[1726615704528,6.54685,2339.7,2339.2,6.68126]
[1726615704828,10.82108,2339.7,2339.2,6.68126]
[1726615705241,4.27428,2339.6,2339.2,2.4063]
[1726615705819,4.27447,2339.5,2339.2,2.4063]
[1726615706024,6.5715,2339.3,2338.9,9.598]
[1726615706225,6.5715,2339.3,2338.9,2.318]
[1726615706443,4.275,2339.2,2338.9,2.318]
[1726615706644,6.5715,2339.3,2338.9,2.318]
[1726615709262,4.2749,2339.3,2338.9,2.318]
[1726615712164,4.27472,2339.4,2338.9,6.59349]
[1726615712360,4.27472,2339.4,2338.9,8.11142036]
[1726615713169,4.27472,2339.4,2338.9,12.38685036]
[1726615713377,4.27472,2339.4,2338.9,8.11136036]
[1726615714144,4.27472,2339.4,2338.9,8.11134036]
[1726615715148,4.27472,2339.4,2338.9,12.38676036]
[1726615715492,4.2746,2339.4,2339.0,4.27531]
[1726615718973,5.4734875,2339.4,2339.0,4.27531]
[1726615720204,4.2746,2339.4,2339.0,4.27531]
[1726615720353,4.27453,2339.5,2339.1,6.5706]
[1726615721366,4.27453,2339.5,2339.1,2.2955]
[1726615722499,4.27461,2339.4,2339.1,2.2955]
[1726615737945,4.27453,2339.5,2339.1,6.57056]
[1726615738092,4.27442,2339.5,2339.1,6.57056]
[1726615738905,4.27442,2339.5,2339.1,2.2955]
[1726615739527,4.27442,2339.5,2339.1,6.57059]
[1726615739714,4.27442,2339.5,2339.1,2.2955]
[1726615742354,4.27442,2339.5,2339.1,6.57063]
[1726615742528,4.27442,2339.5,2339.2,2.3219]
[1726615749733,4.27468,2339.4,2339.2,2.3219]
[1726615749932,4.27468,2339.4,2339.0,6.67673]
[1726615750426,4.27468,2339.4,2339.0,2.4015]
[1726615750427,4.27498,2339.2,2339.0,2.4015]
[1726615750632,4.27478,2339.3,2338.8,4.27567]
[1726615750633,4.27478,2339.3,2338.9,3.0]
[1726615750933,2.3577,2339.4,2338.6,3.27172179]
[1726615750934,4.27535,2339.0,2338.6,3.27172179]
[1726615751239,8.5508,2339.0,2338.6,3.27172179]
[1726615751426,4.27535,2339.0,2338.6,3.27172179]
[1726615751869,4.2757,2338.8,2338.6,0.87022179]
[1726615752036,4.27587,2338.7,2338.6,0.87022179]
[1726615752371,5.74177519,2338.7,2338.6,0.87022179]
[1726615752582,10.01764519,2338.7,2338.6,0.87022179]
[1726615752779,12.24949677,2338.7,2338.6,0.87022179]
[1726615753280,12.24949677,2338.7,2338.2,2.4015]
[1726615753281,4.27628,2338.5,2338.2,2.4015]
[1726615753799,10.90156,2338.5,2338.2,2.4015]
[1726615754076,1.090156,2338.4,2337.9,5.4956]
[1726615754247,4.27682,2338.2,2337.9,2.4956]
[1726615754575,4.27682,2338.2,2337.7,2.5348141]
[1726615756252,6.62572,2338.2,2337.7,2.5348141]
[1726615759366,6.62572,2338.2,2337.7,6.8125141]
[1726615759898,4.27699,2338.1,2337.7,2.5348141]
[1726615760997,4.27716,2338.0,2337.7,2.5348141]
[1726615761464,11.992914,2338.2,2337.7,2.5348141]
[1726615763176,4.27697,2338.1,2337.7,2.5348141]
[1726615767311,4.27719,2338.0,2337.7,2.5348141]
[1726615767512,4.27697,2338.1,2337.7,2.5348141]
[1726615767513,5.132766,2337.9,2337.7,0.0392141]
[1726615767699,4.27735,2337.9,2337.7,0.0392141]
[1726615768300,4.27717,2338.0,2337.7,0.0392141]
[1726615774935,2.3489,2338.2,2337.8,2.263]
[1726615775098,1.51793036,2338.5,2337.9,1.51793036]
[1726615775099,4.27673,2338.3,2337.9,1.51793036]
[1726615775291,4.27673,2338.3,2338.0,2.263]
[1726615776491,5.66152384,2338.5,2338.0,2.263]
[1726615776885,4.27651,2338.4,2338.0,2.263]
[1726615780110,4.27663,2338.3,2338.0,2.263]
[1726615781444,4.27681,2338.2,2338.0,2.263]
[1726615783944,5.132154,2338.2,2337.8,2.3667]
[1726615784151,4.277,2338.1,2337.8,2.3667]
[1726615786516,4.277,2338.1,2337.7,0.0392141]
[1726615786517,4.27729,2338.0,2337.7,0.0392141]
[1726615789593,4.277,2338.1,2337.7,0.0392141]
[1726615789594,4.27752,2337.8,2337.7,0.0392141]
[1726615792505,4.27736,2337.9,2337.7,0.0392141]
[1726615793296,8.55487,2337.9,2337.7,0.0392141]
[1726615793464,4.27736,2337.9,2337.7,0.0392141]
[1726615793863,8.55487,2337.9,2337.7,0.0392141]
[1726615794090,8.55479,2337.9,2337.7,0.0392141]
[1726615794289,8.55478,2337.9,2337.7,0.0392141]
[1726615794478,8.55482,2337.9,2337.7,0.0392141]
[1726615794985,4.27736,2337.9,2337.7,0.0392141]
[1726615795378,8.55482,2337.9,2337.7,0.0392141]
[1726615795811,4.27736,2337.9,2337.7,0.0392141]
[1726615797288,8.5548,2337.9,2337.7,0.0392141]
[1726615797494,4.27736,2337.9,2337.7,0.0392141]
[1726615797991,8.55478,2337.9,2337.7,0.0392141]
[1726615798223,4.27736,2337.9,2337.7,0.0392141]
[1726615802102,8.5548,2337.9,2337.7,0.0392141]
[1726615802300,9.87498507,2337.9,2337.7,0.0392141]
[1726615802503,5.59755507,2337.9,2337.7,0.0392141]
[1726615802926,9.87501507,2337.9,2337.7,0.0392141]
[1726615803100,5.59755507,2337.9,2337.7,0.0392141]
[1726615803713,9.87500507,2337.9,2337.7,0.0392141]
[1726615804646,4.27752,2337.8,2337.7,0.0392141]
[1726615805054,6.72512,2337.8,2337.7,0.0392141]
[1726615809363,4.27752,2337.8,2337.7,0.0392141]
[1726615810303,4.27707,2338.1,2337.7,1.55714446]
[1726615810476,8.55333,2338.3,2337.9,1.51793036]
[1726615810681,4.27662,2338.3,2337.9,1.51793036]
[1726615810855,4.27662,2338.3,2338.0,2.2564]
[1726615811375,4.27663,2338.3,2338.0,2.2564]
[1726615815791,8.95470981,2338.5,2338.0,2.2564]
[1726615815995,4.27697,2338.1,2337.8,2.3673]
[1726615816598,8.55411,2338.1,2337.8,2.3673]
[1726615816758,4.27718,2338.0,2337.8,2.3673]
[1726615817490,4.27697,2338.1,2337.8,2.3673]
[1726615824100,8.55404,2338.1,2337.8,2.3673]
[1726615824768,4.27697,2338.1,2337.8,2.3673]
[1726615824982,8.55406,2338.1,2337.8,2.3673]
[1726615825365,4.27697,2338.1,2337.8,2.3673]
[1726615827319,4.27697,2338.1,2337.7,0.0392141]
[1726615827476,4.27723,2338.0,2337.7,0.0392141]
[1726615829912,4.27689,2338.2,2337.8,6.75522]
[1726615830064,4.59187494,2338.4,2338.0,1.51793036]
[1726615830263,4.27642,2338.4,2338.2,2.3003]
[1726615830685,4.27661,2338.3,2338.0,2.3003]
[1726615831005,4.27684,2338.2,2337.9,3.0]
[1726615831804,4.27684,2338.2,2337.8,5.3003]
[1726615832002,4.27684,2338.2,2337.8,9.57782]
[1726615832301,2.3429,2338.3,2337.8,13.85525]
[1726615832470,6.61951,2338.3,2337.8,15.46436319]
[1726615832671,6.61951,2338.3,2337.8,11.18693319]
[1726615833108,4.27694,2338.2,2337.8,6.90950319]
[1726615833473,8.55383,2338.2,2337.8,2.3003]
[1726615833672,4.27689,2338.2,2337.8,2.3003]
[1726615836781,8.55378,2338.2,2337.8,2.3003]
[1726615837311,4.27689,2338.2,2337.8,2.3003]
[1726615838475,4.27689,2338.2,2337.8,6.5778]
[1726615838806,4.27689,2338.2,2337.8,2.3003]
[1726615839172,4.27688,2338.2,2337.8,2.3003]
[1726615839464,4.27697,2338.1,2337.8,2.3003]
[1726615839668,4.27697,2338.1,2337.7,0.0392141]
[1726615839669,4.27719,2338.0,2337.7,0.0392141]
[1726615839970,6.65459,2338.0,2337.7,0.0392141]
[1726615841010,2.3774,2338.0,2337.7,0.0392141]
[1726615841553,4.27697,2338.1,2337.7,0.0392141]
[1726615841885,4.27697,2338.1,2337.7,1.16022655]
[1726615842182,4.27697,2338.1,2337.8,2.4075]
[1726615844606,4.27694,2338.2,2337.8,2.4075]
[1726615846186,8.55345,2338.3,2337.8,6.68491]
[1726615846378,4.27681,2338.2,2337.8,6.68491]
[1726615849189,4.27661,2338.3,2337.8,6.68491]
[1726615849423,4.2768,2338.2,2337.8,6.68491]
[1726615851093,4.27661,2338.3,2337.9,2.3102]
[1726615851293,4.27661,2338.3,2337.9,6.58751]
[1726615852098,8.55331,2338.3,2337.9,2.3102]
[1726615852922,4.2768,2338.2,2337.9,2.3102]
[1726615853126,4.27707,2338.1,2337.7,3.0392141]
[1726615854601,4.27716,2338.0,2337.7,3.0392141]
[1726615854804,4.27716,2338.0,2337.7,0.0392141]
[1726615855327,5.58131116,2338.0,2337.7,0.0392141]
[1726615858631,6.72968,2337.9,2337.7,0.0392141]
[1726615858988,2.4522,2337.9,2337.7,0.0392141]
[1726615861044,5.58133116,2338.0,2337.7,0.0392141]
[1726615861401,9.85858116,2338.0,2337.7,0.0392141]
[1726615862103,1.22933812,2337.9,2337.7,0.0392141]
[1726615862438,5.50668812,2337.9,2337.7,0.0392141]
[1726615863198,1.22933812,2337.9,2337.7,0.0392141]
[1726615863442,4.27718,2338.0,2337.7,0.0392141]
[1726615865339,2.4348,2338.1,2337.7,0.0392141]
[1726615865340,6.7118,2338.1,2337.7,0.0392141]
[1726615868421,4.27716,2338.0,2337.7,0.0392141]
[1726615868747,2.4348,2338.1,2337.7,0.0392141]
[1726615868748,11.02924,2337.8,2337.7,0.0392141]
[1726615868975,12.132164,2337.8,2337.7,0.0392141]
[1726615869295,18.64191925,2337.8,2337.7,0.0392141]
[1726615869554,16.409684,2337.8,2337.7,0.0392141]
[1726615870549,19.08463509,2337.8,2337.7,0.0392141]
[1726615870954,16.409684,2337.8,2337.7,0.0392141]
[1726615871113,19.08459967,2337.8,2337.7,0.0392141]
[1726615871308,16.409684,2337.8,2337.7,0.0392141]
[1726615871512,14.36033562,2337.8,2337.7,0.0392141]
[1726615872714,18.63785562,2337.8,2337.7,0.0392141]
[1726615872943,14.36033562,2337.8,2337.7,0.0392141]
[1726615875328,12.132164,2337.8,2337.7,0.0392141]
[1726615876219,4.27734,2337.9,2337.7,0.0392141]
[1726615876414,6.6727,2338.0,2337.7,0.0392141]
[1726615876415,10.94999,2338.0,2337.7,0.0392141]
[1726615876654,6.67269,2338.0,2337.7,0.0392141]
[1726615877317,4.27727,2338.0,2337.7,0.0392141]
[1726615878164,4.27727,2338.0,2337.7,0.70759251]
[1726615878319,8.55452,2338.0,2337.7,0.70759251]
[1726615878522,4.27725,2338.0,2337.7,0.0392141]
[1726615878825,8.55455,2338.0,2337.7,0.0392141]
[1726615879451,4.27725,2338.0,2337.7,0.0392141]
[1726615879769,8.55452,2338.0,2337.7,0.0392141]
[1726615880273,8.55451,2338.0,2337.7,0.0392141]
[1726615880867,4.27734,2337.9,2337.7,0.0392141]
[1726615886963,4.27725,2338.0,2337.7,0.0392141]
[1726615887174,4.27725,2338.0,2337.7,0.70759251]
[1726615888373,4.27699,2338.1,2337.7,0.70759251]
[1726615888543,4.27716,2338.0,2337.7,0.70759251]
[1726615889277,4.27692,2338.2,2337.7,0.70759251]
[1726615889471,4.27707,2338.1,2337.7,0.70759251]
[1726615889771,4.27669,2338.3,2337.9,2.3353]
[1726615896957,4.27662,2338.3,2337.9,2.3353]
[1726615897156,4.27658,2338.4,2337.9,5.3353]
[1726615897574,4.27662,2338.3,2337.9,5.3353]
[1726615898581,4.27662,2338.3,2337.9,9.6126]
[1726615898815,4.27662,2338.3,2337.9,11.29791076]
[1726615899984,4.27662,2338.3,2337.9,7.02061076]
[1726615902312,8.5534,2338.3,2337.9,7.02061076]
[1726615902606,4.27687,2338.2,2337.9,2.3353]
[1726615904089,4.27654,2338.4,2337.9,6.61254]
[1726615905109,4.27663,2338.3,2337.9,6.61254]
[1726615905880,4.27663,2338.3,2337.9,2.3353]
[1726615916900,4.27684,2338.2,2337.9,2.3353]
[1726615920716,4.27709,2338.1,2337.9,2.3353]
[1726615920890,9.63188044,2338.2,2337.9,2.3353]
[1726615921242,5.35494044,2338.2,2337.9,2.3353]
[1726615921904,4.27706,2338.1,2337.7,5.3347141]
[1726615922099,4.27745,2337.9,2337.7,0.0392141]
[1726615922316,5.50811924,2337.9,2337.7,0.0392141]
[1726615922485,4.27752,2337.8,2337.7,0.0392141]
[1726615922837,11.00064,2337.8,2337.7,0.0392141]
[1726615923132,6.72312,2337.8,2337.7,0.0392141]
[1726615923788,4.27752,2337.8,2337.7,0.0392141]
[1726615924022,1.23066924,2337.9,2337.7,2.3347141]
[1726615924196,2.23160851,2338.0,2337.7,2.3347141]
[1726615924401,6.50867851,2338.1,2337.7,2.3347141]
[1726615924600,4.27707,2338.1,2337.7,2.3347141]
[1726615927685,8.55461,2338.0,2337.7,2.3347141]
[1726615927935,1.31971014,2337.9,2337.7,2.3347141]
[1726615928137,1.31971014,2337.9,2337.7,0.0392141]
[1726615928348,4.27752,2337.8,2337.7,0.0392141]
[1726615928633,5.59706014,2337.9,2337.7,0.0392141]
[1726615931620,4.27752,2337.8,2337.7,0.0392141]
[1726615931826,5.48816637,2337.8,2337.7,0.0392141]
[1726615935960,4.27735,2337.9,2337.7,0.0392141]
[1726615936148,6.50858408,2338.1,2337.8,2.263]
[1726615936567,6.50863242,2338.1,2337.8,2.263]
[1726615937131,4.27707,2338.1,2337.8,2.263]
[1726615938476,5.58775024,2338.1,2337.8,2.263]
[1726615938635,5.58775024,2338.1,2337.7,0.0392141]
[1726615938636,2.3318,2338.0,2337.7,0.0392141]
[1726615938980,4.27742,2337.9,2337.7,0.0392141]
[1726615939126,4.27752,2337.8,2337.7,0.0392141]
[1726615939326,8.55504,2337.8,2337.7,0.0392141]
[1726615939542,9.86688024,2337.8,2337.7,0.0392141]
[1726615941275,5.58936024,2337.8,2337.7,0.0392141]
[1726615941458,4.27735,2337.9,2337.7,2.3414141]
[1726615942265,4.2773,2338.0,2337.7,2.3414141]
[1726615942580,4.27734,2337.9,2337.7,2.3414141]
[1726615944481,4.2773,2338.0,2337.7,2.3414141]
[1726615948776,2.23212856,2338.1,2337.7,7.28098151]
[1726615949080,2.23212856,2338.1,2337.7,3.00334151]
[1726615949081,4.27698,2338.1,2337.7,3.00334151]
[1726615949857,6.50910856,2338.1,2337.7,3.00334151]
[1726615950072,4.27698,2338.1,2337.7,3.00334151]
[1726615950881,10.7861935,2338.2,2337.7,4.97876151]
[1726615951201,6.5092935,2338.2,2337.8,2.2958]
[1726615951488,2.2324535,2338.4,2338.2,2.3915]
[1726615951634,2.2324535,2338.5,2338.2,2.3915]
[1726615951835,6.5086335,2338.6,2338.2,2.3915]
[1726615952147,4.27618,2338.6,2338.2,6.66828]
[1726615952353,4.27618,2338.6,2338.2,7.92339535]
[1726615952953,6.5082135,2338.8,2338.3,5.79690386]
[1726615953158,10.7840035,2338.8,2338.4,2.3915]
[1726615953679,8.55155,2338.8,2338.4,2.3915]
[1726615954080,10.7840035,2338.8,2338.4,2.3915]
[1726615954375,8.55155,2338.8,2338.4,2.3915]
[1726615954753,4.27588,2338.7,2338.4,2.3915]
[1726615956044,4.27576,2338.8,2338.4,2.3915]
[1726615957275,8.5516,2338.8,2338.4,2.3915]
[1726615961392,4.27588,2338.7,2338.4,2.3915]
[1726615961560,4.27588,2338.7,2338.4,3.18382954]
[1726615961770,4.27576,2338.8,2338.4,3.18382954]
[1726615961977,8.55162,2338.8,2338.4,3.18382954]
[1726615962487,4.27576,2338.8,2338.4,3.18382954]
[1726615962782,8.55156,2338.8,2338.4,3.18382954]
[1726615962974,4.27576,2338.8,2338.4,3.18382954]
[1726615968998,4.27566,2338.9,2338.4,3.18382954]
[1726615969169,4.27579,2338.8,2338.4,2.3915]
[1726615974150,4.27566,2338.9,2338.4,2.3915]
[1726615974151,4.27566,2338.9,2338.5,2.3036]
[1726615974429,4.2756,2338.9,2338.5,2.3036]
[1726615974586,8.55124,2338.9,2338.5,2.3036]
[1726615974935,4.2756,2338.9,2338.5,2.3036]
[1726615975136,8.55128,2338.9,2338.5,2.3036]
[1726615975995,4.2756,2338.9,2338.5,2.3036]
[1726615976196,8.55121,2338.9,2338.5,2.3036]
[1726615977536,8.55123,2338.9,2338.5,2.3036]
[1726615978107,4.27573,2338.8,2338.5,2.3036]
[1726615979394,4.27596,2338.7,2338.5,2.3036]
[1726615980337,4.27606,2338.6,2338.5,2.3036]
[1726615981355,4.27606,2338.6,2338.2,2.4501]
[1726615984959,4.27599,2338.7,2338.3,5.3184]
[1726615986232,4.27597,2338.7,2338.3,5.3184]
[1726615988721,4.27597,2338.7,2338.3,6.59501]
[1726615988919,4.27597,2338.7,2338.3,7.19555559]
[1726615990316,4.27597,2338.7,2338.3,6.59501]
[1726615994156,4.27597,2338.7,2338.3,2.3184]
[1726615994456,4.27584,2338.8,2338.3,2.3184]
[1726615994772,4.27596,2338.7,2338.3,2.3184]
[1726615995065,4.27596,2338.7,2338.3,6.59501]
[1726615996144,4.27584,2338.8,2338.3,6.59491]
[1726615996558,10.77835019,2338.8,2338.3,6.59491]
[1726615997058,10.78490825,2338.8,2338.3,6.59491]
[1726615997366,4.2759,2338.7,2338.3,6.59491]
[1726615999870,6.50904825,2338.8,2338.3,10.87139]
[1726616000055,6.50904825,2338.8,2338.4,2.4669]
[1726616000386,4.27584,2338.8,2338.4,2.4669]
[1726616001470,4.27584,2338.8,2338.4,6.82875031]
[1726616001674,4.27544,2339.0,2338.5,6.54033]
[1726616002035,4.27544,2339.0,2338.5,6.62584372]
[1726616002343,4.27542,2339.0,2338.6,4.27606]
[1726616002548,4.27542,2339.0,2338.7,2.2641]
[1726616002938,8.55084,2339.0,2338.7,2.2641]
[1726616003335,4.27542,2339.0,2338.7,2.2641]
[1726616004232,8.55089,2339.0,2338.7,2.2641]
[1726616006270,4.27559,2338.9,2338.7,2.2641]
[1726616006445,4.27559,2338.9,2338.5,2.4759]
[1726616007734,4.27559,2338.9,2338.5,6.75211]
[1726616008358,4.27559,2338.9,2338.5,6.83762379]
[1726616008530,4.27559,2338.9,2338.5,6.75211]
[1726616008730,4.27559,2338.9,2338.5,7.854962]
[1726616009469,4.27559,2338.9,2338.5,7.94047579]
[1726616010464,4.27559,2338.9,2338.5,7.854962]
[1726616010681,4.27559,2338.9,2338.5,7.94047579]
[1726616012691,4.27559,2338.9,2338.5,7.854962]
[1726616013078,4.27559,2338.9,2338.5,7.94047581]
[1726616013683,4.27559,2338.9,2338.5,7.854962]
[1726616013979,4.27571,2338.8,2338.4,3.0]
[1726616014989,4.27571,2338.8,2338.4,7.2764]
[1726616015956,6.66011,2338.9,2338.5,4.27624]
[1726616016155,8.55094,2339.0,2338.6,2.2689]
[1726616016452,4.27553,2338.9,2338.6,2.2689]
[1726616016678,4.27547,2339.0,2338.6,2.2689]
[1726616017095,8.55091,2339.0,2338.6,2.2689]
[1726616022188,8.55087,2339.0,2338.6,2.2689]
[1726616025755,4.27543,2339.0,2338.6,2.2689]
[1726616026887,4.27542,2339.0,2338.6,2.2689]
[1726616027188,8.55088,2339.0,2338.6,2.2689]
[1726616027691,4.27542,2339.0,2338.6,2.2689]
[1726616037958,2.67941524,2339.3,2338.9,2.4967]
[1726616038249,4.72206725,2339.4,2339.0,4.27518]
[1726616039410,4.72206725,2339.4,2338.9,6.7722]
[1726616040666,0.44745725,2339.4,2339.0,4.27518]
[1726616040971,0.44745725,2339.4,2339.1,1.104738]
[1726616041679,0.44745725,2339.4,2339.2,6.60137]
[1726616041830,0.44745725,2339.4,2339.2,2.3265]
[1726616042166,4.2741,2339.7,2339.2,6.60146]
[1726616042634,4.27424,2339.6,2339.2,2.3265]
[1726616048971,4.27424,2339.6,2339.2,6.60145]
[1726616049145,4.27424,2339.6,2339.2,2.3265]
[1726616050866,4.2741,2339.7,2339.2,6.60135]
[1726616051041,5.372455,2339.6,2339.2,6.60135]
[1726616052980,4.27413,2339.7,2339.2,6.60135]
[1726616053578,11.69353,2340.0,2339.5,2.2969]
[1726616053781,11.69353,2340.0,2339.2,4.27483]
[1726616053782,4.27426,2339.6,2339.2,5.2969]
[1726616054088,0.427426,2339.5,2339.2,9.57183]
[1726616054266,4.27407,2339.7,2339.2,9.57183]
[1726616056567,8.54821,2339.7,2339.2,9.57183]
[1726616056766,4.27407,2339.7,2339.2,9.57183]
[1726616057689,4.27407,2339.7,2339.2,7.27493]
[1726616057997,4.27407,2339.7,2339.3,8.14696151]
[1726616059796,4.27407,2339.7,2339.3,6.62717]
[1726616060295,4.27374,2339.9,2339.3,6.62717]
[1726616060464,7.42,2340.0,2339.6,6.62656]
[1726616060706,4.27343,2340.1,2339.7,4.27395]
[1726616061218,8.54686,2340.1,2339.6,6.62672]
[1726616061430,4.27343,2340.1,2339.6,6.62672]
[1726616061689,5.56443936,2340.1,2339.6,10.90087]
[1726616061857,5.56443936,2340.1,2339.6,10.90078]
[1726616062498,4.27343,2340.1,2339.6,10.90078]
[1726616063560,4.27343,2340.1,2339.7,4.27402]
[1726616064182,4.27343,2340.1,2339.6,10.90075]
[1726616065275,8.5469,2340.1,2339.6,6.62662]
[1726616065463,5.51972915,2340.1,2339.6,6.62662]
[1726616065794,5.51972915,2340.1,2339.6,10.90076]
[1726616065983,5.51972915,2340.1,2339.6,6.62662]
[1726616066370,5.51972915,2340.1,2339.6,10.90076]
[1726616066573,5.51972915,2340.1,2339.6,6.62662]
[1726616067213,4.27343,2340.1,2339.6,6.62662]
[1726616069113,4.27343,2340.1,2339.6,10.90076]
[1726616069326,4.27343,2340.1,2339.6,6.62662]
[1726616069683,4.27343,2340.1,2339.7,4.27403]
[1726616069884,4.27334,2340.1,2339.6,6.62662]
[1726616070090,4.27353,2340.0,2339.6,2.3525]
[1726616070303,6.63333,2340.0,2339.6,2.3525]
[1726616070794,6.63333,2340.0,2339.6,6.62672]
[1726616071215,2.3598,2340.0,2339.6,6.62672]
[1726616072683,6.6334,2340.0,2339.6,2.3525]
[1726616073014,7.8335019,2340.0,2339.6,2.3525]
[1726616073237,7.8335019,2340.0,2339.6,6.62672]
[1726616075664,7.8335019,2340.0,2339.6,4.27422]
[1726616075865,6.77202,2339.8,2339.3,6.65746]
[1726616076338,4.27408,2339.7,2339.2,4.27484]
[1726616076729,4.27408,2339.7,2339.2,8.54972]
[1726616077124,4.27408,2339.7,2339.2,4.27484]
[1726616077663,4.27408,2339.7,2339.2,8.54972]
[1726616078360,4.27408,2339.7,2339.2,10.09495115]